bitfinex-derivatives/quotes_BTCF0:USTF0_20230702
["timestamp","ask_amount","ask_price","bid_price","bid_amount"]
[1688266657074,0.57773354,30593.0,30592.0,0.38334547]
[1688266658070,0.49319583,30593.0,30592.0,0.38334547]
[1688266660170,0.49319583,30593.0,30592.0,0.74414547]
[1688266661072,0.49319583,30593.0,30592.0,0.38334547]
[1688266661273,0.49319583,30593.0,30592.0,0.74414547]
[1688266673689,0.49319583,30593.0,30592.0,0.38334547]
[1688266673886,0.49319583,30593.0,30592.0,0.74414547]
[1688266681993,0.32139034,30594.0,30592.0,1.09574547]
[1688266681994,0.00049034,30594.0,30592.0,1.09574547]
[1688266682199,0.00049034,30594.0,30593.0,0.7061]
[1688266682379,0.00049034,30594.0,30593.0,0.7394466]
[1688266682583,0.49238059,30594.0,30593.0,0.7394466]
[1688266683284,0.57691891,30594.0,30593.0,0.7394466]
[1688266683600,0.57691891,30594.0,30593.0,0.3861466]
[1688266686796,0.57691891,30594.0,30593.0,1.1077466]
[1688266697108,0.98461442,30594.0,30593.0,0.28535558]
[1688266697299,0.98461442,30594.0,30592.0,0.399137]
[1688266697497,0.98461442,30594.0,30593.0,0.02989944]
[1688266697498,0.5663901,30594.0,30593.0,0.02989944]
[1688266697696,0.95366924,30594.0,30593.0,0.02989944]
[1688266697895,1.66776924,30594.0,30590.0,0.058848]
[1688266698106,0.711,30591.0,30588.0,0.019616]
[1688266698405,0.372217,30589.0,30588.0,0.019616]
[1688266698594,0.372217,30589.0,30586.0,0.058857]
[1688266698795,0.723119,30586.0,30585.0,0.019618]
[1688266699008,0.726219,30586.0,30585.0,0.019618]
[1688266699199,1.21800263,30586.0,30585.0,0.019618]
[1688266699399,0.01962,30584.0,30583.0,0.065402]
[1688266699598,0.73072,30584.0,30583.0,0.09244421]
[1688266700001,1.25884663,30584.0,30583.0,0.09244421]
[1688266701404,1.58384663,30584.0,30583.0,0.09244421]
[1688266702699,1.70156472,30584.0,30583.0,0.09244421]
[1688266705315,1.70156472,30584.0,30583.0,0.02704221]
[1688266705908,1.70156472,30584.0,30581.0,0.019621]
[1688266706105,0.3533,30582.0,30581.0,0.019621]
[1688266706305,0.41000014,30582.0,30581.0,0.019621]
[1688266706506,0.89725368,30582.0,30581.0,0.019621]
[1688266707011,0.89725368,30582.0,30581.0,0.01968693]
[1688266709708,0.89725368,30582.0,30581.0,6.593e-05]
[1688266709903,0.89725368,30582.0,30581.0,0.02709939]
[1688266710106,0.89725368,30582.0,30581.0,0.0206354]
[1688266710515,0.89725368,30582.0,30580.0,0.019622]
[1688266710718,0.38737914,30581.0,30580.0,0.019622]
[1688266710903,0.40700114,30581.0,30580.0,0.019622]
[1688266711108,0.90004471,30581.0,30580.0,0.019622]
[1688266711509,0.90004471,30581.0,30580.0,0.07025629]
[1688266711704,0.90004471,30581.0,30580.0,0.069622]
[1688266711911,0.90004471,30581.0,30580.0,0.09025587]
[1688266712115,0.90004471,30581.0,30580.0,0.01805587]
[1688266712409,0.90004471,30581.0,30580.0,0.03527787]
[1688266712816,0.90004471,30581.0,30580.0,0.04427787]
[1688266713014,1.26084471,30581.0,30580.0,0.009]
[1688266713222,1.22376557,30581.0,30577.0,0.058873]
[1688266713513,0.733723,30578.0,30577.0,0.058873]
[1688266713910,1.22201397,30578.0,30577.0,0.058873]
[1688266714115,1.25909311,30578.0,30577.0,0.058873]
[1688266714513,1.30909311,30578.0,30577.0,0.058873]
[1688266716418,1.23796342,30578.0,30577.0,0.058873]
[1688266716912,1.25619311,30578.0,30577.0,0.058873]
[1688266717317,1.23796342,30578.0,30577.0,0.058873]
[1688266717517,0.84619097,30578.0,30577.0,0.412173]
[1688266717712,0.53829097,30578.0,30577.0,0.412173]
[1688266719210,0.50829097,30578.0,30577.0,0.412173]
[1688266719920,0.50829097,30578.0,30577.0,0.41957157]
[1688266720121,0.48829097,30578.0,30577.0,0.41957157]
[1688266721815,0.50714042,30578.0,30577.0,0.41957157]
[1688266723025,0.52537011,30578.0,30577.0,0.41957157]
[1688266723226,0.50714042,30578.0,30577.0,0.41957157]
[1688266723725,0.86044042,30578.0,30577.0,0.41717157]
[1688266724528,0.87867011,30578.0,30577.0,0.41717157]
[1688266724728,0.89829311,30578.0,30577.0,0.41717157]
[1688266725622,0.88006342,30578.0,30577.0,0.41717157]
[1688266726027,0.88006342,30578.0,30577.0,0.41724602]
[1688266726028,0.86044042,30578.0,30577.0,0.41724602]
[1688266726732,0.88044042,30578.0,30577.0,0.41724602]
[1688266727629,0.91044042,30578.0,30577.0,0.41724602]
[1688266728018,0.88044042,30578.0,30577.0,0.41724602]
[1688266729429,0.86159097,30578.0,30577.0,0.41724602]
[1688266729626,0.50829097,30578.0,30577.0,0.41964602]
[1688266729831,0.48829097,30578.0,30577.0,0.41964602]
[1688266730231,0.49246129,30580.0,30577.0,0.41964602]
[1688266730428,0.49246129,30580.0,30579.0,0.7141]
[1688266730732,0.49246129,30580.0,30579.0,0.74110376]
[1688266731133,0.53131074,30580.0,30579.0,0.74117395]
[1688266731432,0.56131074,30580.0,30579.0,0.74117395]
[1688266731934,0.53131074,30580.0,30579.0,0.74117395]
[1688266732133,0.51131074,30580.0,30579.0,0.74117395]
[1688266733634,0.86161074,30580.0,30579.0,0.38787395]
[1688266734039,0.89946243,30580.0,30579.0,0.38787395]
[1688266734638,0.88123274,30580.0,30579.0,0.38787395]
[1688266735335,0.86161074,30580.0,30579.0,0.38787395]
[1688266736129,0.91161074,30580.0,30579.0,0.38787395]
[1688266740141,0.93123274,30580.0,30579.0,0.38787395]
[1688266741446,0.91161074,30580.0,30579.0,0.38787395]
[1688266742543,0.89276129,30580.0,30579.0,0.38787395]
[1688266744151,0.86276129,30580.0,30579.0,0.38787395]
[1688266746145,0.84276129,30580.0,30579.0,0.38787395]
[1688266749059,0.86161074,30580.0,30579.0,0.38787395]
[1688266749654,0.88123274,30580.0,30579.0,0.02707395]
[1688266750156,0.89946243,30580.0,30579.0,0.02707395]
[1688266751152,0.91946243,30580.0,30579.0,0.02707395]
[1688266751562,0.94946243,30580.0,30579.0,0.02707395]
[1688266753950,0.97611176,30580.0,30579.0,0.02707395]
[1688266755159,1.37871176,30580.0,30575.0,0.00017894]
[1688266755461,1.37871176,30580.0,30574.0,0.058878]
[1688266755462,1.0622,30576.0,30574.0,0.019626]
[1688266755660,0.74135469,30575.0,30574.0,0.019626]
[1688266755863,1.25184548,30575.0,30574.0,0.019626]
[1688266756763,1.36955388,30575.0,30574.0,0.019626]
[1688266757170,1.39955388,30575.0,30574.0,0.019626]
[1688266757354,1.41955388,30575.0,30574.0,0.019626]
[1688266758465,1.74585388,30575.0,30574.0,0.019626]
[1688266760570,1.39565388,30575.0,30574.0,0.019626]
[1688266760985,1.39565388,30575.0,30574.0,0.03837572]
[1688266764275,1.39565388,30575.0,30572.0,0.058879]
[1688266764276,1.74895388,30575.0,30572.0,0.058879]
[1688266764475,0.3499,30573.0,30572.0,0.058879]
[1688266764675,0.369526,30573.0,30572.0,0.058879]
[1688266764975,1.25497295,30573.0,30571.0,0.019627]
[1688266765175,0.86799381,30573.0,30572.0,0.019627]
[1688266765482,1.21789381,30573.0,30572.0,0.019627]
[1688266765784,1.25497295,30573.0,30572.0,0.019627]
[1688266765986,1.27497295,30573.0,30572.0,0.019627]
[1688266766173,1.30497295,30573.0,30572.0,0.019627]
[1688266769576,1.26789381,30573.0,30571.0,0.04907]
[1688266769869,0.41000614,30572.0,30571.0,0.04907]
[1688266770275,0.9016955,30572.0,30571.0,0.04907]
[1688266770476,0.86461636,30572.0,30571.0,0.04907]
[1688266771077,0.93284605,30572.0,30571.0,0.04907]
[1688266771281,0.93284605,30572.0,30571.0,0.06407]
[1688266771581,0.9516955,30572.0,30571.0,0.06407]
[1688266771981,0.9516955,30572.0,30571.0,0.07817776]
[1688266772983,0.91461636,30572.0,30571.0,0.07817776]
[1688266773781,0.89498936,30572.0,30571.0,0.07817776]
[1688266776787,0.91461636,30572.0,30571.0,0.07817776]
[1688266777378,0.9516955,30572.0,30571.0,0.07817776]
[1688266779184,0.9516955,30572.0,30571.0,0.02910776]
[1688266779577,0.9516955,30572.0,30571.0,0.04873576]
[1688266781280,0.9516955,30572.0,30571.0,0.03373576]
[1688266784485,0.9516955,30572.0,30571.0,0.01410776]
[1688266784686,0.9516955,30572.0,30569.0,0.049072]
[1688266785007,0.3533,30570.0,30569.0,0.049072]
[1688266785186,0.372928,30570.0,30569.0,0.049072]
[1688266785495,0.89839614,30570.0,30569.0,0.049072]
[1688266786389,0.89839614,30570.0,30569.0,0.0336916]
[1688266786988,0.94839614,30570.0,30569.0,0.0336916]
[1688266787788,0.911317,30570.0,30569.0,0.0336916]
[1688266789290,0.92954669,30570.0,30569.0,0.0336916]
[1688266789487,0.911317,30570.0,30569.0,0.0336916]
[1688266791095,0.92954669,30570.0,30569.0,0.0336916]
[1688266791285,0.911317,30570.0,30569.0,0.0336916]
[1688266793990,0.891689,30570.0,30569.0,0.0336916]
[1688266795298,0.891689,30570.0,30569.0,0.3869916]
[1688266795299,0.538389,30570.0,30569.0,0.3869916]
[1688266796497,0.518389,30570.0,30569.0,0.3869916]
[1688266798509,0.488389,30570.0,30569.0,0.3869916]
[1688266801599,0.89839614,30570.0,30569.0,0.0336916]
[1688266802711,0.86053845,30570.0,30569.0,0.0336916]
[1688266802917,0.88016645,30570.0,30569.0,0.0336916]
[1688266803214,0.89839614,30570.0,30569.0,0.0336916]
[1688266804613,0.88016645,30570.0,30569.0,0.0336916]
[1688266804808,0.89839614,30570.0,30569.0,0.0336916]
[1688266806110,0.841689,30570.0,30569.0,0.02677872]
[1688266808919,0.841689,30570.0,30569.0,0.38007872]
[1688266809812,0.488389,30570.0,30569.0,0.37687872]
[1688266810213,0.3499,30573.0,30569.0,0.37687872]
[1688266810214,0.49185168,30572.0,30569.0,0.37687872]
[1688266810411,0.49185168,30572.0,30571.0,0.7141]
[1688266810611,0.49185168,30572.0,30571.0,0.733728]
[1688266810817,0.49185168,30572.0,30571.0,0.7376418]
[1688266819720,0.51147868,30572.0,30571.0,0.7376418]
[1688266820428,0.49185168,30572.0,30571.0,0.7376418]
[1688266821324,0.51147868,30572.0,30571.0,0.7376418]
[1688266823727,1.17517868,30572.0,30571.0,0.3843418]
[1688266826533,1.15555168,30572.0,30571.0,0.3843418]
[1688266828235,1.17517868,30572.0,30571.0,0.3843418]
[1688266831437,1.19402813,30572.0,30571.0,0.3843418]
[1688266831837,1.17517868,30572.0,30571.0,0.3843418]
[1688266832637,1.19340837,30572.0,30571.0,0.3843418]
[1688266832937,1.17517868,30572.0,30571.0,0.0385418]
[1688266836833,1.21225782,30572.0,30571.0,0.0385418]
[1688266838842,1.17517868,30572.0,30571.0,0.0385418]
[1688266839036,1.19402813,30572.0,30571.0,0.0385418]
[1688266841048,1.19402813,30572.0,30571.0,0.04797089]
[1688266841439,1.17517868,30572.0,30571.0,0.04797089]
[1688266842240,1.19340837,30572.0,30571.0,0.03297089]
[1688266842540,1.17517868,30572.0,30571.0,0.03297089]
[1688266844451,1.15555168,30572.0,30571.0,0.03297089]
[1688266846146,1.181326,30572.0,30571.0,0.03297089]
[1688266847438,1.20017545,30572.0,30571.0,0.03297089]
[1688266847951,1.181326,30572.0,30571.0,0.03297089]
[1688266848149,1.200953,30572.0,30571.0,0.03297089]
[1688266849742,1.21918269,30572.0,30571.0,0.03297089]
[1688266850140,1.23803214,30572.0,30571.0,0.03297089]
[1688266853450,1.21918269,30572.0,30571.0,0.03297089]
[1688266853653,1.200953,30572.0,30571.0,0.03297089]
[1688266854144,1.21918269,30572.0,30571.0,0.03297089]
[1688266854345,1.23803214,30572.0,30571.0,0.03297089]
[1688266856355,1.21918269,30572.0,30571.0,0.03297089]
[1688266856856,1.200953,30572.0,30571.0,0.03297089]
[1688266857051,1.21918269,30572.0,30571.0,0.03297089]
[1688266857449,1.23803214,30572.0,30571.0,0.03297089]
[1688266858152,1.3395503,30572.0,30571.0,0.03297089]
[1688266858760,1.21980245,30572.0,30571.0,0.03297089]
[1688266859253,1.21918269,30572.0,30571.0,0.03297089]
[1688266861151,1.200953,30572.0,30571.0,0.03297089]
[1688266861564,1.21918269,30572.0,30571.0,0.03297089]
[1688266862553,1.200953,30572.0,30571.0,0.03297089]
[1688266863463,1.21918269,30572.0,30571.0,0.03297089]
[1688266864157,1.200953,30572.0,30571.0,0.03297089]
[1688266865971,1.23803214,30572.0,30571.0,0.03297089]
[1688266872567,1.23803214,30572.0,30569.0,0.058884]
[1688266872769,0.3524,30568.0,30567.0,0.02655149]
[1688266873071,1.2147476,30568.0,30567.0,0.01963]
[1688266873271,1.25182674,30568.0,30567.0,0.01963]
[1688266873664,1.56472674,30568.0,30567.0,0.01963]
[1688266874067,1.68243514,30568.0,30567.0,0.01963]
[1688266875064,1.68243514,30568.0,30565.0,0.058895]
[1688266875269,0.372931,30566.0,30565.0,0.058895]
[1688266875673,0.86199307,30566.0,30565.0,0.058895]
[1688266875872,0.89907221,30566.0,30564.0,0.0453502]
[1688266876069,0.685831,30565.0,30564.0,0.0453502]
[1688266876379,1.21606753,30565.0,30564.0,0.0453502]
[1688266877285,1.21606753,30565.0,30564.0,0.0257192]
[1688266877780,1.21606753,30565.0,30563.0,0.02565951]
[1688266877966,1.10447914,30564.0,30559.0,0.06545]
[1688266878171,0.7141,30560.0,30559.0,0.06545]
[1688266878366,0.733735,30560.0,30559.0,0.06545]
[1688266878673,0.90076209,30560.0,30559.0,0.06545]
[1688266878972,1.20756209,30560.0,30559.0,0.06545]
[1688266879173,1.18871264,30560.0,30559.0,0.08616105]
[1688266879783,1.20756209,30560.0,30559.0,0.08616105]
[1688266880670,1.17048295,30560.0,30559.0,0.08616105]
[1688266881172,1.18871264,30560.0,30559.0,0.08616105]
[1688266881684,1.20756209,30560.0,30559.0,0.08616105]
[1688266881972,1.20756209,30560.0,30559.0,0.02071105]
[1688266882582,1.32527049,30560.0,30559.0,0.02071105]
[1688266884567,1.32527049,30560.0,30559.0,0.04034705]
[1688266889865,1.30642104,30560.0,30559.0,0.04034705]
[1688266890078,1.30642104,30560.0,30559.0,0.05534705]
[1688266890983,1.30642104,30560.0,30559.0,0.05514813]
[1688266891169,1.17048295,30560.0,30559.0,0.04014813]
[1688266891571,1.13584795,30560.0,30559.0,0.04014813]
[1688266891772,0.82904795,30560.0,30559.0,0.04014813]
[1688266893177,0.8675324,30560.0,30559.0,0.04014813]
[1688266894386,0.88576209,30560.0,30559.0,0.04014813]
[1688266894589,0.88570209,30560.0,30559.0,0.04014813]
[1688266896594,0.8674724,30560.0,30559.0,0.04014813]
[1688266896783,0.82898795,30560.0,30559.0,0.04014813]
[1688266897690,0.84721764,30560.0,30559.0,0.04014813]
[1688266897874,0.86685264,30560.0,30559.0,0.04014813]
[1688266898281,0.88570209,30560.0,30559.0,0.04014813]
[1688266898891,0.84862295,30560.0,30559.0,0.04014813]
[1688266899186,0.8674724,30560.0,30559.0,0.04014813]
[1688266899589,0.88570209,30560.0,30559.0,0.04014813]
[1688266899790,0.8674724,30560.0,30559.0,0.04014813]
[1688266900290,0.88570209,30560.0,30559.0,0.04014813]
[1688266901090,0.8674724,30560.0,30559.0,0.04014813]
[1688266901283,0.84862295,30560.0,30559.0,0.04014813]
[1688266901779,0.86685264,30560.0,30559.0,0.04014813]
[1688266901980,0.88570209,30560.0,30559.0,0.04014813]
[1688266902692,1.18800209,30560.0,30559.0,0.04014813]
[1688266903594,1.1697724,30560.0,30559.0,0.04014813]
[1688266903790,1.15092295,30560.0,30559.0,0.04014813]
[1688266904891,1.16915264,30560.0,30559.0,0.04014813]
[1688266905279,1.18800209,30560.0,30559.0,0.04014813]
[1688266907394,1.1697724,30560.0,30559.0,0.04014813]
[1688266907994,1.18800209,30560.0,30559.0,0.04014813]
[1688266910594,1.1697724,30560.0,30559.0,0.04014813]
[1688266910995,1.15092295,30560.0,30559.0,0.04014813]
[1688266911996,0.82898795,30560.0,30559.0,0.04014813]
[1688266913089,0.82898795,30560.0,30559.0,0.39104813]
[1688266913491,0.82898795,30560.0,30559.0,0.39754813]
[1688266913693,0.49074795,30560.0,30559.0,0.39904813]
[1688266913999,0.3518,30561.0,30559.0,0.39904813]
[1688266914299,0.3518,30561.0,30560.0,0.3533]
[1688266914499,0.3518,30561.0,30560.0,0.372934]
[1688266914700,0.84316849,30561.0,30560.0,0.38971911]
[1688266918100,0.84316849,30561.0,30560.0,0.39621911]
[1688266920091,0.84316849,30561.0,30560.0,0.38971911]
[1688266923702,0.84466849,30561.0,30560.0,0.38971911]
[1688266926601,0.84466849,30561.0,30560.0,0.39621911]
[1688266927602,0.84466849,30561.0,30560.0,0.42192451]
[1688266928210,0.84466849,30561.0,30560.0,0.41542451]
[1688266935706,0.84316849,30561.0,30560.0,0.06212451]
[1688266945416,0.88103218,30561.0,30560.0,0.06212451]
[1688266945816,0.89988163,30561.0,30560.0,0.06212451]
[1688266950022,0.88165194,30561.0,30560.0,0.06212451]
[1688266950221,0.86280249,30561.0,30560.0,0.06212451]
[1688266950626,0.86280249,30561.0,30560.0,0.42292451]
[1688266950818,0.88103218,30561.0,30560.0,0.42292451]
[1688266952831,0.84316849,30561.0,30560.0,0.42292451]
[1688266954014,0.86139818,30561.0,30560.0,0.42292451]
[1688266954427,0.88103218,30561.0,30560.0,0.42292451]
[1688266955325,0.89988163,30561.0,30560.0,0.42298451]
[1688266956932,0.88103218,30561.0,30560.0,0.42298451]
[1688266958834,0.86280249,30561.0,30560.0,0.42298451]
[1688266959038,0.88103218,30561.0,30560.0,0.42298451]
[1688266959428,0.88103218,30561.0,30560.0,0.06218451]
[1688266959632,0.88103218,30561.0,30560.0,0.42298451]
[1688266961738,0.89988163,30561.0,30560.0,0.42298451]
[1688266962343,0.86280249,30561.0,30560.0,0.42298451]
[1688266962839,0.88103218,30561.0,30560.0,0.42298451]
[1688266963043,0.86280249,30561.0,30560.0,0.42298451]
[1688266963743,0.88103218,30561.0,30560.0,0.42298451]
[1688266964042,0.89988163,30561.0,30560.0,0.42298451]
[1688266965045,0.88103218,30561.0,30560.0,0.42298451]
[1688266965547,0.86280249,30561.0,30560.0,0.42298451]
[1688266966136,0.86280249,30561.0,30560.0,0.06218451]
[1688266966340,0.88103218,30561.0,30560.0,0.42298451]
[1688266966846,0.86280249,30561.0,30560.0,0.42298451]
[1688266967042,0.84316849,30561.0,30560.0,0.42298451]
[1688266967247,0.86139818,30561.0,30560.0,0.42298451]
[1688266967632,0.84316849,30561.0,30560.0,0.42298451]
[1688266968448,0.88103218,30561.0,30560.0,0.42298451]
[1688266968747,0.89988163,30561.0,30560.0,0.42298451]
[1688266971253,1.25318163,30561.0,30560.0,0.01501254]
[1688266971447,1.25318163,30561.0,30557.0,0.3608]
[1688266971743,0.369536,30558.0,30557.0,0.019636]
[1688266972254,0.90053828,30558.0,30557.0,0.019636]
[1688266975042,1.57273828,30558.0,30556.0,0.04581239]
[1688266975246,0.41001514,30557.0,30556.0,0.019637]
[1688266975752,0.89811373,30557.0,30556.0,0.019637]
[1688266977552,0.89811373,30557.0,30554.0,0.4518977]
[1688266977743,0.3526,30555.0,30554.0,0.0910977]
[1688266977944,0.372238,30555.0,30554.0,0.0910977]
[1688266978142,0.86342891,30555.0,30554.0,0.0910977]
[1688266978343,0.90050805,30555.0,30554.0,0.0910977]
[1688266978648,1.22580805,30555.0,30554.0,0.10831629]
[1688266981953,1.22580805,30555.0,30554.0,0.06249329]
[1688266984350,0.90050805,30555.0,30554.0,0.06249329]
[1688266984549,0.90050805,30555.0,30554.0,0.06242845]
[1688266985555,1.17112891,30555.0,30554.0,0.03685659]
[1688266985961,1.15149091,30555.0,30554.0,0.03685659]
[1688266986449,0.84379091,30555.0,30554.0,0.03685659]
[1688266988854,0.90050805,30555.0,30554.0,0.03685659]
[1688266996263,0.88227836,30555.0,30554.0,0.03685659]
[1688266996462,0.88087005,30555.0,30554.0,0.03685659]
[1688266997066,0.88087005,30555.0,30554.0,0.39765659]
[1688266997067,0.84379091,30555.0,30554.0,0.39765659]
[1688266998570,0.86342791,30555.0,30554.0,0.39765659]
[1688267000463,0.86332165,30555.0,30554.0,0.39765659]
[1688267003760,0.84368465,30555.0,30554.0,0.39765659]
[1688267005277,0.84368465,30555.0,30554.0,0.40415659]
[1688267005462,0.40958946,30555.0,30554.0,0.75745659]
[1688267005658,0.40958946,30555.0,30554.0,0.75655659]
[1688267013671,0.76288946,30555.0,30554.0,0.75745659]
[1688267016088,0.76282946,30555.0,30554.0,0.75745659]
[1688267017979,0.76282946,30555.0,30554.0,1.11825659]
[1688267018580,0.76282946,30555.0,30554.0,1.11175659]
[1688267019482,0.40952946,30555.0,30554.0,1.10855659]
[1688267033191,0.75942946,30555.0,30554.0,0.75845659]
[1688267044097,0.77827891,30555.0,30554.0,0.75845659]
[1688267045098,0.75942946,30555.0,30554.0,0.75845659]
[1688267049608,0.75942946,30555.0,30554.0,1.11175659]
[1688267053595,0.76282946,30555.0,30554.0,1.11065659]
[1688267059503,0.78167891,30555.0,30554.0,1.11065659]
[1688267061106,0.80131691,30555.0,30554.0,1.11065659]
[1688267062913,0.80131691,30555.0,30554.0,0.74985659]
[1688267063711,0.79821691,30555.0,30554.0,0.39765659]
[1688267064021,0.77936746,30555.0,30554.0,0.39765659]
[1688267064809,0.75972946,30555.0,30554.0,0.39765659]
[1688267067111,0.75972946,30555.0,30554.0,0.75845659]
[1688267073629,0.75972946,30555.0,30554.0,1.11065659]
[1688267076029,0.40952946,30555.0,30554.0,1.11175659]
[1688267076726,0.40946946,30555.0,30554.0,1.11175659]
[1688267083656,0.76276946,30555.0,30554.0,0.75845659]
[1688267084132,0.78240646,30555.0,30554.0,0.75845659]
[1688267084834,0.8194856,30555.0,30554.0,0.75845659]
[1688267085232,0.8194856,30555.0,30554.0,0.69615659]
[1688267085436,0.8194856,30555.0,30554.0,0.01299977]
[1688267085634,0.8194856,30555.0,30553.0,0.01981782]
[1688267085938,0.42910646,30555.0,30554.0,0.00974963]
[1688267086140,0.8194856,30555.0,30554.0,0.00974963]
[1688267087826,0.8194856,30555.0,30554.0,0.02938763]
[1688267090640,0.80063615,30555.0,30554.0,0.02938763]
[1688267091548,0.76276946,30555.0,30554.0,0.02938763]
[1688267093745,0.76276946,30555.0,30554.0,0.38028763]
[1688267094545,0.80063615,30555.0,30554.0,0.38028763]
[1688267094744,0.8194856,30555.0,30554.0,0.38028763]
[1688267096547,0.80125591,30555.0,30554.0,0.38028763]
[1688267097246,0.78240646,30555.0,30554.0,0.38028763]
[1688267097445,0.76276946,30555.0,30554.0,0.38028763]
[1688267103453,0.76276946,30555.0,30554.0,0.74108763]
[1688267103752,0.75966946,30555.0,30554.0,0.74028763]
[1688267108143,0.77851891,30555.0,30554.0,0.74028763]
[1688267108853,0.75966946,30555.0,30554.0,0.74028763]
[1688267113663,0.40946946,30555.0,30554.0,0.74028763]
[1688267123852,0.40946946,30555.0,30554.0,0.74420743]
[1688267124062,0.30067844,30555.0,30554.0,0.74420743]
[1688267124850,0.30067844,30555.0,30554.0,0.74156587]
[1688267126060,0.29376344,30555.0,30554.0,0.74156587]
[1688267126458,0.29376344,30555.0,30554.0,0.737038]
[1688267127464,0.2664837,30555.0,30554.0,0.737038]
[1688267130868,0.2664837,30555.0,30554.0,0.730538]
[1688267133477,0.2664837,30555.0,30554.0,0.369738]
[1688267133766,0.2664837,30555.0,30554.0,1.091338]
[1688267137477,0.2464237,30555.0,30554.0,1.091338]
[1688267137671,0.2464237,30555.0,30554.0,1.097838]
[1688267138281,0.2214237,30555.0,30554.0,1.097838]
[1688267138879,0.1954237,30555.0,30554.0,1.097838]
[1688267139263,0.1854237,30555.0,30554.0,1.097838]
[1688267141874,0.1854237,30555.0,30554.0,1.091338]
[1688267142877,0.1654237,30555.0,30554.0,1.091338]
[1688267146081,0.313,30561.0,30558.0,0.05]
[1688267146275,0.313,30561.0,30560.0,1.0738]
[1688267146474,0.313,30561.0,30560.0,1.093434]
[1688267146778,0.83565966,30561.0,30560.0,1.093434]
[1688267146979,0.52265966,30561.0,30560.0,1.093434]
[1688267147178,0.51265966,30561.0,30560.0,1.093434]
[1688267147581,0.49572437,30561.0,30560.0,1.093434]
[1688267147974,0.48997943,30561.0,30560.0,1.093434]
[1688267148282,0.43299254,30561.0,30560.0,1.093434]
[1688267151191,0.00049085,30563.0,30562.0,0.05]
[1688267151488,0.00820687,30563.0,30562.0,0.422933]
[1688267151882,0.4879292,30563.0,30562.0,0.422933]
[1688267152388,0.0004908,30566.0,30562.0,0.422933]
[1688267152574,0.0004908,30566.0,30565.0,1.122876]
[1688267152975,0.490786,30566.0,30565.0,1.122876]
[1688267154884,0.49899562,30566.0,30565.0,1.122876]
[1688267155689,0.51862562,30566.0,30565.0,1.137876]
[1688267157893,0.49899562,30566.0,30565.0,1.137876]
[1688267165298,0.49899562,30566.0,30565.0,1.16371567]
[1688267166392,0.49899562,30566.0,30565.0,1.14871567]
[1688267173716,0.50399141,30566.0,30565.0,1.14871567]
[1688267174095,0.490786,30566.0,30565.0,1.14871567]
[1688267174299,0.50399203,30566.0,30565.0,1.50031567]
[1688267174503,0.490786,30566.0,30565.0,1.50031567]
[1688267175403,0.3255,30568.0,30565.0,1.50681567]
[1688267175608,0.3128,30573.0,30570.0,0.05]
[1688267175800,0.049057,30578.0,30572.0,1.0717]
[1688267175995,0.049057,30578.0,30577.0,0.713]
[1688267176208,0.049057,30578.0,30577.0,0.732623]
[1688267176404,0.59050645,30578.0,30577.0,0.732623]
[1688267176993,0.56050645,30578.0,30577.0,0.732623]
[1688267177303,0.57050645,30578.0,30577.0,0.732623]
[1688267177498,0.59050645,30578.0,30577.0,0.732623]
[1688267177907,0.56050645,30578.0,30577.0,0.732623]
[1688267178304,0.54050645,30578.0,30577.0,0.732623]
[1688267178606,0.49144945,30578.0,30577.0,0.732623]
[1688267182614,0.51107245,30578.0,30577.0,0.732623]
[1688267184610,0.53251939,30578.0,30577.0,0.732623]
[1688267187322,0.51289639,30578.0,30577.0,0.732623]
[1688267187917,0.53251939,30578.0,30577.0,0.732623]
[1688267188415,0.88581939,30578.0,30577.0,0.733723]
[1688267193721,0.53251939,30578.0,30577.0,0.733723]
[1688267202020,0.55136884,30578.0,30577.0,0.733723]
[1688267202622,0.53251939,30578.0,30577.0,0.733723]
[1688267218240,0.53251939,30578.0,30577.0,0.372923]
[1688267218548,0.53251939,30578.0,30577.0,0.733723]
[1688267224347,0.51289639,30578.0,30577.0,0.733723]
[1688267225552,0.59746768,30578.0,30577.0,0.733723]
[1688267233246,0.51289639,30578.0,30577.0,0.733723]
[1688267233549,0.51289639,30578.0,30577.0,1.094523]
[1688267244164,0.53251939,30578.0,30577.0,1.094523]
[1688267244661,0.55136884,30578.0,30577.0,1.094523]
[1688267246455,0.53251939,30578.0,30577.0,1.094523]
[1688267246657,0.53251939,30578.0,30577.0,0.733723]
[1688267248055,0.53251939,30578.0,30577.0,0.372923]
[1688267248264,0.53251939,30578.0,30577.0,0.733723]
[1688267248777,0.53251939,30578.0,30577.0,0.372923]
[1688267248969,0.53251939,30578.0,30577.0,0.733723]
[1688267263966,0.53251939,30578.0,30577.0,0.372923]
[1688267265470,0.55136884,30578.0,30577.0,0.372923]
[1688267282886,0.55136884,30578.0,30577.0,0.733723]
[1688267287783,0.56959853,30578.0,30577.0,0.253723]
[1688267288681,0.56959853,30578.0,30577.0,0.273346]
[1688267289289,0.55136884,30578.0,30577.0,0.273346]
[1688267289890,0.55136884,30578.0,30577.0,0.380423]
[1688267291493,0.56959853,30578.0,30577.0,0.732623]
[1688267291681,0.55136884,30578.0,30577.0,0.732623]
[1688267291882,0.56959853,30578.0,30577.0,0.732623]
[1688267292187,0.55136884,30578.0,30577.0,0.732623]
[1688267292491,0.56959853,30578.0,30577.0,0.732623]
[1688267293290,0.55136884,30578.0,30577.0,0.732623]
[1688267293878,0.55136884,30578.0,30577.0,0.371823]
[1688267294083,0.55136884,30578.0,30577.0,0.732623]
[1688267295193,0.56959853,30578.0,30577.0,0.732623]
[1688267297587,0.56959853,30578.0,30577.0,0.371823]
[1688267307807,0.55136884,30578.0,30577.0,0.371823]
[1688267308306,0.56959853,30578.0,30577.0,0.371823]
[1688267314407,0.53251939,30578.0,30577.0,0.371823]
[1688267316308,0.55136884,30578.0,30577.0,0.371823]
[1688267316607,0.56959853,30578.0,30577.0,0.732623]
[1688267317204,0.55136884,30578.0,30577.0,0.732623]
[1688267320207,0.56959853,30578.0,30577.0,0.732623]
[1688267320408,0.55136884,30578.0,30577.0,0.732623]
[1688267320798,0.55136884,30578.0,30577.0,0.371823]
[1688267321002,0.56959853,30578.0,30577.0,0.732623]
[1688267321198,0.55136884,30578.0,30577.0,0.242623]
[1688267321407,0.55136884,30578.0,30577.0,0.614446]
[1688267321613,0.56959853,30578.0,30577.0,0.614446]
[1688267322314,0.56959853,30578.0,30577.0,0.371823]
[1688267325914,0.6710918,30578.0,30577.0,0.371823]
[1688267330616,0.56959853,30578.0,30577.0,0.371823]
[1688267332501,0.91979853,30578.0,30577.0,0.371823]
[1688267333619,0.92289853,30578.0,30577.0,0.019623]
[1688267336020,0.90466884,30578.0,30577.0,0.019623]
[1688267336708,0.92289853,30578.0,30577.0,0.019623]
[1688267338316,0.98731548,30578.0,30575.0,0.382871]